bitfinex/quotes_ETHUSD_20220305
["timestamp","ask_amount","ask_price","bid_price","bid_amount"]
[1646499339006,0.17014198,2664.5,2664.4,1.06743908]
[1646499339205,0.17014198,2664.5,2664.4,1.14436992]
[1646499345066,0.17014198,2664.5,2664.4,0.07693084]
[1646499345767,0.17014198,2664.5,2664.2,0.07693084]
[1646499346004,0.17014198,2664.5,2664.3,0.08022821]
[1646499346207,0.17014198,2664.5,2664.3,0.00329737]
[1646499346208,1.00865073,2664.4,2664.3,0.00329737]
[1646499346810,1.00865073,2664.4,2664.2,0.07693276]
[1646499347010,1.00865073,2664.4,2664.2,0.08023014]
[1646499348011,0.40295146,2664.4,2664.2,0.07693276]
[1646499348215,0.40295146,2664.4,2664.2,0.00331072]
[1646499349116,0.40295146,2664.4,2664.1,0.01584576]
[1646499349117,0.78115146,2664.4,2664.1,0.01584576]
[1646499349514,0.40295146,2664.4,2664.2,0.00331072]
[1646499350357,0.78115146,2664.4,2664.1,0.01584576]
[1646499350558,0.40295146,2664.4,2664.2,0.00331072]
[1646499351558,0.40295146,2664.4,2664.1,0.01584576]
[1646499351559,0.78115146,2664.4,2664.1,0.01584576]
[1646499351762,0.40295146,2664.4,2664.2,0.00331027]
[1646499352768,0.78115146,2664.4,2664.1,0.01584576]
[1646499352967,0.40295146,2664.4,2664.2,0.00331027]
[1646499354005,0.78115146,2664.4,2664.1,0.01584576]
[1646499354205,0.40295146,2664.4,2664.2,0.00331027]
[1646499354806,0.40295146,2664.4,2663.6,0.39454161]
[1646499354807,1.06359267,2664.0,2663.6,0.39454161]
[1646499355006,1.06359267,2664.0,2663.7,0.00199464]
[1646499355007,1.53891669,2663.9,2663.7,0.00199464]
[1646499355210,1.53891669,2663.9,2663.5,0.01620084]
[1646499355211,5.3782,2663.8,2663.5,0.01620084]
[1646499355408,4.5,2663.7,2663.5,0.029768]
[1646499355806,1.0,2663.7,2663.5,0.029768]
[1646499356007,0.94751721,2663.6,2663.5,0.029768]
[1646499356207,0.3782,2663.8,2663.5,0.029768]
[1646499356405,0.3782,2663.9,2663.5,0.029768]
[1646499356609,1.91725149,2663.8,2663.5,0.029768]
[1646499356806,0.3782,2663.8,2663.5,0.029768]
[1646499357657,2.47807842,2663.7,2663.5,0.029768]
[1646499357857,0.93902647,2663.7,2663.5,0.029768]
[1646499358058,1.3782,2663.8,2663.5,0.029768]
[1646499358257,2.71345279,2664.2,2663.5,0.029768]
[1646499358258,0.3782,2664.0,2663.5,0.029768]
[1646499358462,1.0,2664.2,2663.5,0.029768]
[1646499358463,1.53899458,2663.9,2663.5,0.029768]
[1646499358662,7.3332,2664.3,2663.5,0.029768]
[1646499358865,1.53889627,2664.2,2663.5,0.029768]
[1646499359063,1.53889627,2664.2,2663.6,0.00354691]
[1646499359265,1.42891662,2664.1,2663.6,0.00354691]
[1646499359465,1.01754376,2663.7,2663.6,0.00354691]
[1646499359866,1.01754376,2663.7,2663.5,0.029768]
[1646499360267,1.01754376,2663.7,2663.5,0.03331499]
[1646499360463,0.3782,2664.0,2663.5,0.03331499]
[1646499360663,1.53894218,2663.9,2663.5,0.03331499]
[1646499360904,0.3782,2664.0,2663.5,0.03331499]
[1646499361204,0.3782,2664.0,2663.5,0.029768]
[1646499361402,6.3332,2664.3,2663.6,0.00354695]
[1646499361403,0.3782,2664.2,2663.6,0.00354695]
[1646499361605,1.91711282,2664.1,2663.6,0.00354695]
[1646499361803,1.91711282,2664.0,2663.6,0.00354695]
[1646499362002,0.3782,2664.0,2663.6,0.00354695]
[1646499362206,0.3782,2664.0,2663.6,0.03331495]
[1646499362404,0.3782,2664.0,2663.6,0.029768]
[1646499362705,2.47928116,2663.9,2663.7,0.00354688]
[1646499362904,0.9402824,2663.9,2663.7,0.00354688]
[1646499363103,0.9402824,2663.9,2663.7,0.03331488]
[1646499363509,0.9402824,2663.9,2663.7,0.029768]
[1646499363711,1.53899726,2663.8,2663.7,0.029768]
[1646499363909,1.53899726,2663.8,2663.7,0.03319517]
[1646499364310,1.9402824,2663.9,2663.7,0.03319517]
[1646499364509,0.9402824,2663.9,2663.7,0.03319517]
[1646499364755,0.9402824,2663.9,2663.7,0.029768]
[1646499365952,1.53902501,2663.8,2663.7,0.029768]
[1646499366353,0.9402824,2663.9,2663.7,0.029768]
[1646499367358,0.9402824,2663.9,2663.7,0.03330311]
[1646499367956,0.17014198,2663.8,2663.7,0.03330311]
[1646499368407,0.17014198,2663.8,2663.7,0.029768]
[1646499370313,0.17014198,2663.8,2663.4,0.03304288]
[1646499372156,0.17014198,2663.8,2663.5,0.00188577]
[1646499373157,0.17014198,2663.8,2663.4,0.03304288]
[1646499373459,0.17014198,2663.8,2663.5,0.03492865]
[1646499374259,0.17014198,2663.8,2663.5,0.03304288]
[1646499374659,0.17014198,2663.8,2663.5,0.0364615]
[1646499375662,5.99311714,2664.6,2663.6,5.0]
[1646499375663,2.4897,2664.6,2663.6,5.0]
[1646499375907,2.4897,2664.6,2663.6,5.3755]
[1646499375908,1.53875723,2664.5,2663.6,5.3755]
[1646499376117,0.00347014,2664.6,2663.7,0.00198579]
[1646499376315,0.00347014,2664.6,2663.7,0.11196315]
[1646499376515,0.00347014,2664.6,2663.8,0.07693448]
[1646499376712,0.00347014,2664.6,2663.8,0.07892027]
[1646499376713,1.52379686,2664.6,2663.8,0.07892027]
[1646499377113,1.18070948,2664.5,2664.0,1.21190886]
[1646499377312,0.00347043,2664.6,2664.5,0.11807094]
[1646499377912,1.5,2664.7,2664.5,0.11807094]
[1646499378312,1.20366594,2664.6,2664.5,0.11807094]
[1646499381959,2.72711867,2664.6,2664.5,0.11807094]
[1646499382560,1.20366594,2664.6,2664.5,0.11807094]
[1646499382962,2.72735479,2664.6,2664.5,0.11807094]
[1646499383409,1.20366594,2664.6,2664.5,0.11807094]
[1646499384413,1.20366594,2664.6,2664.5,0.19500135]
[1646499386215,1.10366594,2664.6,2664.5,0.19500135]
[1646499387255,1.50329853,2664.7,2664.5,0.19500135]
[1646499387454,1.50329853,2664.7,2664.6,0.07693041]
[1646499387658,1.5,2664.7,2664.6,0.07693041]
[1646499387855,1.50329853,2664.7,2664.6,0.07693041]
[1646499388458,2.66026338,2664.7,2664.6,0.07693041]
[1646499388857,2.65696485,2664.7,2664.6,0.07693041]
[1646499390359,1.5,2664.7,2664.6,0.07693041]
[1646499397357,1.35000001,2664.7,2664.6,0.0769289]
[1646499397658,5.22550001,2664.7,2664.5,0.11807094]
[1646499397856,9.90826143,2664.6,2664.0,0.00198579]
[1646499398056,0.3755,2664.4,2663.8,0.1875]
[1646499398258,3.8755,2664.4,2663.9,0.00198579]
[1646499398513,0.3755,2664.2,2663.8,0.18948579]
[1646499398911,0.3755,2664.2,2663.8,0.1875]
[1646499399509,0.3755,2664.2,2663.7,0.22054288]
[1646499401117,3.8755,2664.2,2663.7,0.03304288]
[1646499401312,0.97923332,2663.8,2663.7,0.03304288]
[1646499405906,4.47923332,2663.8,2663.7,0.03304288]
[1646499406108,0.97923332,2663.8,2663.7,0.03304288]
[1646499406508,2.51267533,2663.8,2663.7,0.03304288]
[1646499407307,0.90899365,2663.4,2663.3,0.02256344]
[1646499408916,5.3755,2663.2,2662.8,0.20381865]
[1646499409115,5.3755,2663.2,2663.0,0.03940588]
[1646499409116,3.955,2663.1,2663.0,0.03940588]
[1646499409314,6.37220056,2663.0,2662.6,0.00198579]
[1646499409514,1.7701084,2662.9,2662.5,0.3753]
[1646499409756,5.2701084,2662.9,2662.5,0.3753]
[1646499409957,1.7701084,2662.9,2662.5,0.3753]
[1646499410159,2.7701084,2662.9,2662.5,0.3753]
[1646499410356,1.7701084,2662.9,2662.5,0.3753]
[1646499410557,2.7602184,2662.9,2662.5,0.3753]
[1646499410757,1.7602184,2662.9,2662.5,0.3753]
[1646499411357,3.5,2662.8,2662.5,0.3753]
[1646499411566,3.955,2662.8,2662.4,0.28701359]
[1646499411758,5.3921602,2662.7,2662.4,0.03701359]
[1646499411961,3.955,2662.6,2662.4,0.0350278]
[1646499412157,3.5,2662.5,2662.4,0.0350278]
[1646499412357,3.5,2662.5,2662.3,0.00247984]
[1646499412358,4.5,2662.4,2662.3,0.00247984]
[1646499412558,4.955,2662.4,2662.3,0.00247984]
[1646499412758,6.97104224,2662.4,2662.3,0.00247984]
[1646499414212,2.47104224,2662.4,2662.3,0.00247984]
[1646499414409,1.455,2662.4,2662.3,0.00247984]
[1646499414611,0.455,2662.4,2662.3,0.00247984]
[1646499415613,1.49034136,2662.4,2662.3,0.00247984]
[1646499415818,4.99034136,2662.4,2662.3,0.00247984]
[1646499416013,5.0,2662.3,2662.2,0.00495968]
[1646499416217,9.9451,2662.3,2662.2,0.00495968]
[1646499416417,5.3755,2662.2,2661.9,0.01190515]
[1646499416616,4.3305,2662.1,2661.9,0.00991936]
[1646499416820,1.49806509,2662.0,2661.9,0.00991936]
[1646499417257,1.49806509,2662.0,2661.5,0.04936825]
[1646499417258,0.3755,2661.9,2661.5,0.04936825]
[1646499417458,0.455,2661.9,2661.5,0.04936825]
[1646499417655,3.51276722,2662.5,2661.6,0.04553721]
[1646499417656,0.455,2662.3,2661.6,0.04553721]
[1646499417856,1.0,2662.5,2661.6,0.2352224]
[1646499417857,0.455,2662.5,2661.6,0.2352224]
[1646499418057,0.455,2662.5,2661.7,0.00199455]
[1646499418258,2.3306,2662.6,2661.7,0.04696334]
[1646499418462,0.27,2663.0,2661.8,1.37002486]
[1646499418662,0.27,2663.0,2661.9,0.00199455]
[1646499418865,0.27,2663.0,2662.0,0.1877]
[1646499419066,0.27,2663.0,2662.1,0.00199455]
[1646499419266,0.27353248,2663.0,2662.1,0.04822331]
[1646499419465,0.27353248,2663.0,2662.2,0.22982667]
[1646499419665,0.27353248,2663.0,2662.7,0.92389267]
[1646499420067,0.27,2663.0,2662.7,0.92389267]
[1646499420565,0.22353271,2663.0,2662.7,0.92389267]
[1646499421204,0.22,2663.0,2662.7,0.92389267]
[1646499421708,0.22155122,2663.0,2662.7,0.92389267]
[1646499422507,0.22,2663.0,2662.7,0.92389267]
[1646499422708,0.22,2663.0,2662.3,1.9827128]
[1646499422709,0.22341059,2663.0,2662.3,0.0435528]
[1646499423108,0.22341059,2663.0,2662.4,0.04098983]
[1646499423407,0.59891059,2663.0,2662.4,0.04098983]
[1646499423613,0.93927533,2662.7,2662.2,0.94545192]
[1646499423912,0.59884567,2663.0,2662.2,0.94744647]
[1646499424114,0.59884567,2663.0,2662.3,0.04155825]
[1646499424312,4.55384567,2663.0,2662.3,0.04155825]
[1646499424512,1.05384567,2663.0,2662.2,0.04212667]
[1646499424765,0.3755,2662.8,2662.0,1.14094956]
[1646499424960,0.3755,2662.6,2662.0,1.0]
[1646499425157,0.94865616,2662.4,2662.1,0.00334674]
[1646499426057,0.94865616,2662.4,2661.5,0.04939795]
[1646499426264,0.8305,2662.3,2661.5,0.04939795]
[1646499426459,0.8305,2662.3,2662.0,0.00174112]
[1646499426760,4.3305,2662.3,2662.0,0.00174112]
[1646499427158,5.3305,2662.3,2662.0,0.00174112]
[1646499427362,1.12621489,2661.6,2661.5,0.04939795]
[1646499427557,1.12621489,2661.6,2661.5,0.0625703]
[1646499428614,1.12621489,2661.6,2661.5,0.04939795]
[1646499430123,1.58121489,2661.6,2661.5,0.04939795]
[1646499432017,2.0,2661.5,2661.4,0.03220355]
[1646499432273,2.0,2661.5,2661.4,0.02890145]
[1646499432471,1.58121489,2661.6,2661.4,0.02890145]
[1646499434076,1.38121489,2661.6,2661.4,0.02890145]
[1646499435278,1.75671489,2661.6,2661.4,0.02890145]
[1646499435914,1.38121489,2661.6,2661.4,0.02890145]
[1646499436518,0.455,2661.6,2661.4,0.02890145]
[1646499436717,4.256,2662.2,2661.4,0.02890145]
[1646499436718,5.711,2662.2,2661.4,0.02890145]
[1646499436916,5.8988,2662.2,2661.4,0.02890145]
[1646499437117,0.3755,2662.0,2661.4,0.03240568]
[1646499437316,0.8305,2662.0,2661.4,0.03240568]
[1646499437516,1.7704609,2662.0,2661.4,0.03240568]
[1646499438117,1.7704609,2662.0,2661.4,0.02890145]
[1646499438318,1.7704609,2662.0,2661.6,0.00350408]
[1646499438721,0.95476495,2661.7,2661.6,0.00350408]
[1646499439122,0.455,2661.9,2661.6,0.00350408]
[1646499439324,0.455,2661.9,2661.4,0.02890145]
[1646499439766,0.455,2661.9,2661.5,0.00350412]
[1646499439965,5.0683,2662.2,2661.5,0.00350412]
[1646499440167,5.0683,2662.2,2661.5,0.88185421]
[1646499440366,2.2669,2662.7,2661.5,0.88185421]
[1646499440569,2.2669,2662.7,2661.6,0.3755]
[1646499440770,3.9299,2663.1,2661.6,0.37748539]
[1646499440969,0.00350259,2662.8,2661.7,0.00548936]
[1646499441168,1.16241304,2662.7,2662.1,0.99452119]
[1646499441771,1.16241304,2662.7,2661.7,0.00198539]
[1646499441967,1.16241304,2662.7,2662.0,0.00326875]
[1646499442370,0.00326777,2662.8,2662.0,0.00326875]
[1646499442970,3.7165,2663.2,2662.0,0.3755]
[1646499443170,0.00155506,2662.8,2662.1,0.00198539]
[1646499443412,1.04857537,2662.4,2662.1,0.00198539]
[1646499443614,1.04857537,2662.4,2661.9,1.97894351]
[1646499443815,0.00155506,2662.8,2661.9,1.97894351]
[1646499444216,3.5,2663.0,2662.0,0.00198539]
[1646499444417,0.00155503,2662.8,2662.0,0.00198539]
[1646499444616,0.00155503,2662.8,2661.9,1.97894351]
[1646499444817,0.00155503,2662.8,2662.0,0.00198407]
[1646499445016,1.13987355,2662.4,2662.0,0.00198407]
[1646499445216,1.13987355,2662.4,2661.9,1.97894351]
[1646499445418,1.13987355,2662.4,2661.9,1.0]
[1646499445723,1.08987355,2662.4,2662.0,0.00350471]
[1646499446524,0.3755,2662.7,2661.5,0.00198407]
[1646499446525,1.03812024,2661.8,2661.5,0.00198407]
[1646499446717,1.03812024,2661.8,2661.4,0.02890145]
[1646499446918,1.03812024,2661.8,2661.5,0.01402123]
[1646499447168,0.93812024,2661.8,2661.5,0.01402123]
[1646499447759,0.93812024,2661.8,2661.4,0.02890145]
[1646499447958,0.93812024,2661.8,2661.5,0.00350498]
[1646499448764,1.0,2662.3,2661.5,0.00350498]
[1646499448965,1.8305,2662.4,2661.4,0.02890145]
[1646499449166,0.8305,2662.4,2661.5,0.00350498]
[1646499449565,0.455,2662.4,2661.5,0.00350498]
[1646499450167,0.97153407,2662.2,2661.4,0.02890145]
[1646499450568,0.97153407,2662.2,2661.8,0.00339962]
[1646499451315,0.97153407,2662.2,2661.5,0.92002753]
[1646499451909,0.97153407,2662.2,2661.4,0.02890145]
[1646499452713,0.97153407,2662.2,2661.4,3.52890145]
[1646499452910,0.97153407,2662.2,2661.4,0.96342807]
[1646499453716,1.01546197,2661.8,2661.4,0.96342807]
[1646499453915,0.455,2662.4,2661.7,0.00350554]
[1646499454969,0.455,2662.4,2661.6,0.00198407]
[1646499454970,1.05512019,2662.2,2661.6,0.00198407]
[1646499455167,1.05512019,2662.2,2661.9,0.00350535]
[1646499455568,0.455,2662.4,2661.9,0.00350535]
[1646499455768,0.19120423,2662.8,2661.9,0.00350535]
[1646499455769,0.00350423,2662.8,2661.9,0.00350535]
[1646499455972,1.54335123,2662.8,2661.9,0.00350535]
[1646499456171,1.539847,2662.7,2661.6,0.00198407]
[1646499456367,1.539847,2662.6,2661.6,0.00198407]
[1646499456569,0.00350441,2662.8,2662.0,0.00350546]
[1646499456869,0.91697771,2662.4,2662.0,0.00350546]
[1646499457467,0.91697771,2662.4,2661.6,0.00198407]
[1646499457668,0.91697771,2662.4,2662.0,0.00350537]
[1646499458714,0.91697771,2662.4,2661.8,0.00198407]
[1646499458914,0.91697771,2662.4,2662.0,0.00338706]
[1646499459515,2.24278604,2662.8,2662.0,0.00338706]
[1646499459715,2.24278604,2662.8,2661.6,0.00198407]
[1646499459716,1.53990028,2662.7,2661.6,0.00198407]
[1646499460314,1.53990028,2662.7,2662.0,0.00338706]
[1646499460715,0.91471644,2662.5,2662.0,0.00338706]
[1646499460916,0.91471644,2662.5,2661.9,1.23448154]
[1646499461218,0.91471644,2662.5,2662.0,0.00338715]
[1646499461618,1.53995408,2662.4,2662.0,0.00338715]
[1646499462263,1.53995408,2662.4,2661.6,0.00198407]
[1646499462264,0.455,2662.3,2661.6,0.00198407]
[1646499462464,0.455,2662.3,2662.0,0.00326336]
[1646499462465,1.53995408,2662.2,2662.0,0.00326336]
[1646499462665,0.455,2662.1,2662.0,0.00326336]
[1646499462864,0.00333537,2661.8,2661.5,0.01305568]
[1646499463065,0.37883537,2661.8,2661.5,0.01305568]
[1646499463266,0.8305,2661.7,2661.5,0.01305568]
[1646499463471,0.98427898,2661.6,2661.4,0.02890145]
[1646499463669,1.43927898,2661.6,2661.4,0.02890145]
[1646499464071,0.455,2661.6,2661.4,0.02890145]
[1646499464671,0.00333537,2661.8,2661.4,0.02890145]
[1646499465274,0.89499157,2661.7,2661.4,0.02890145]
[1646499466112,0.89499157,2661.7,2661.4,0.03240717]
[1646499466514,1.27049157,2661.7,2661.4,0.03240717]
[1646499466911,1.27049157,2661.7,2661.4,0.02890145]
[1646499467111,0.89499157,2661.7,2661.4,0.02890145]
[1646499467312,0.89499157,2661.7,2661.4,0.03240717]
[1646499467512,0.45833537,2661.8,2661.4,0.03240717]
[1646499467513,0.00333537,2661.8,2661.4,0.03240717]
[1646499468311,0.00333537,2661.8,2661.4,0.02890145]
[1646499468517,0.00333537,2661.8,2661.5,0.00350568]
[1646499468716,1.41811707,2661.8,2661.5,0.00350568]
[1646499469318,1.41811707,2661.8,2661.4,0.02890145]
[1646499469319,1.04261707,2661.8,2661.4,0.02890145]
[1646499469671,0.00333537,2661.8,2661.5,0.00350564]
[1646499470464,0.9412497,2661.7,2661.5,0.00350564]
[1646499470663,0.9412497,2661.7,2661.4,0.02890145]
[1646499470863,1.3167497,2661.7,2661.5,0.00350564]
[1646499471864,1.3167497,2661.7,2661.4,0.02890145]
[1646499472064,1.54035053,2661.6,2661.5,0.00350568]
[1646499473071,1.91585053,2661.6,2661.4,0.02890145]
[1646499473267,1.54040598,2661.5,2661.4,0.02890145]
[1646499473720,1.9954268,2661.5,2661.4,0.02890145]
[1646499474518,0.3755,2661.3,2660.9,0.02348673]
[1646499474720,1.75667973,2661.2,2660.9,0.02348673]
[1646499474920,0.8305,2661.1,2660.9,0.02348673]
[1646499475419,0.8305,2661.1,2660.9,0.00989394]
[1646499476623,5.3755,2661.0,2660.6,0.31489617]
[1646499476826,0.8305,2660.9,2660.6,0.3129121]
[1646499477021,0.8305,2660.9,2660.6,0.0629121]
[1646499477272,0.88402134,2660.8,2660.6,0.0629121]
[1646499477472,1.33902134,2660.8,2660.6,0.0629121]
[1646499477676,1.33902134,2660.8,2660.2,0.00774526]
[1646499477677,0.3755,2660.5,2660.2,0.00774526]
[1646499477872,0.8305,2660.4,2660.2,0.00774526]
[1646499478073,0.8305,2660.4,2660.2,0.02176087]
[1646499479079,0.8305,2660.4,2660.2,0.00774526]
[1646499479280,0.8305,2660.4,2660.2,0.01124897]
[1646499480279,0.8305,2660.4,2660.2,0.00774526]
[1646499480478,3.8755,2660.3,2659.9,0.09803979]
[1646499480677,3.5,2660.3,2660.2,0.00350371]
[1646499480920,4.5,2660.3,2660.2,0.00350371]
[1646499481116,8.455,2660.3,2660.2,0.00350371]
[1646499481523,8.455,2660.3,2659.9,0.09803979]
[1646499481524,0.3755,2660.2,2659.9,0.09803979]
[1646499481715,8.3755,2660.3,2660.1,0.00350374]
[1646499481915,3.955,2660.2,2660.1,0.00350374]
[1646499482217,4.955,2660.2,2660.1,0.00350374]
[1646499482415,16.8505,2660.2,2659.9,5.504e-05]
[1646499482814,5.3305,2660.2,2659.9,5.504e-05]
[1646499483014,5.3305,2660.2,2660.0,0.0033987]
[1646499483015,1.8305,2660.2,2660.0,0.0033987]
[1646499483215,0.8305,2660.2,2660.0,0.0033987]
[1646499483819,0.8305,2660.2,2659.9,5.504e-05]
[1646499484230,1.1897852,2660.0,2659.9,5.504e-05]
[1646499484421,16.6647852,2660.0,2659.9,5.504e-05]
[1646499484691,5.1447852,2660.0,2659.9,5.504e-05]
[1646499484881,6.1447852,2660.0,2659.9,5.504e-05]
[1646499485076,12.975,2660.0,2659.9,5.504e-05]
[1646499485277,1.455,2660.0,2659.9,5.504e-05]
[1646499485775,0.455,2660.0,2659.9,5.504e-05]
[1646499486778,1.9404605,2660.8,2659.9,5.504e-05]
[1646499486779,3.05239608,2660.5,2659.9,5.504e-05]
[1646499486979,1.91289608,2660.5,2659.9,5.504e-05]
[1646499487480,1.03531128,2660.4,2659.9,5.504e-05]
[1646499487681,12.3505,2660.3,2660.0,0.00350391]
[1646499487878,0.00364061,2659.9,2659.8,0.0188311]
[1646499488077,3.95864061,2659.9,2659.8,0.0188311]
[1646499488277,5.0,2659.8,2659.7,0.01401722]
[1646499488544,0.3755,2659.5,2659.0,0.0292217]
[1646499488747,0.3755,2659.5,2658.8,0.29349716]
[1646499488748,0.3755,2659.1,2658.8,0.29349716]
[1646499488943,0.455,2659.0,2658.8,0.29349716]
[1646499489144,4.0,2658.9,2658.5,0.97010441]
[1646499489443,0.8305,2658.8,2658.5,0.99777793]
[1646499489645,0.8305,2658.8,2658.5,0.02767352]
[1646499489844,0.455,2658.8,2658.5,0.02767352]
[1646499491050,4.78125778,2658.7,2658.5,0.02767352]
[1646499491246,3.955,2658.6,2658.5,0.0020046]
[1646499491447,0.0709,2658.4,2658.3,2.346e-05]
[1646499491645,0.5259,2658.4,2658.3,2.346e-05]
[1646499492672,0.9014,2658.4,2658.2,0.02238098]
[1646499493474,0.5259,2658.4,2658.2,0.02238098]
[1646499493676,0.5259,2658.4,2658.2,8.098e-05]
[1646499494172,0.455,2658.4,2658.2,8.098e-05]
[1646499494573,0.455,2658.8,2658.2,8.098e-05]
[1646499494773,0.455,2658.8,2658.6,1.15477738]
[1646499495180,1.4578616,2659.3,2658.6,1.15477738]
[1646499495774,1.6755,2659.6,2658.6,1.15477738]
[1646499496019,1.6755,2659.6,2659.0,1.04067327]
[1646499496416,0.455,2659.6,2659.0,1.04067327]
[1646499496817,0.455,2659.6,2658.6,0.00548849]
[1646499497018,0.3755,2659.5,2658.6,0.00198202]
[1646499497217,0.3755,2659.3,2658.6,0.00198202]
[1646499497418,0.3755,2659.1,2658.6,0.01951487]
[1646499497618,1.91207504,2659.1,2658.6,0.01753285]
[1646499498217,2.0,2658.9,2658.3,0.01126038]
[1646499498418,1.10906633,2659.0,2658.3,0.01126038]
[1646499499322,1.10906633,2659.0,2658.3,0.92780841]
[1646499500370,1.10906633,2659.0,2658.8,0.01104607]
[1646499500969,1.56406633,2659.0,2658.8,0.01104607]
[1646499501371,3.5,2658.9,2658.8,4.607e-05]
[1646499501569,3.955,2658.9,2658.8,4.607e-05]
[1646499501771,4.955,2658.9,2658.8,4.607e-05]
[1646499501972,1.455,2658.9,2658.8,4.607e-05]
[1646499502375,0.455,2658.9,2658.8,4.607e-05]
[1646499504118,0.02969244,2659.0,2658.8,4.607e-05]
[1646499504321,0.02618951,2659.0,2658.8,4.607e-05]
[1646499504521,0.02969244,2659.0,2658.8,4.607e-05]
[1646499505426,0.02969244,2659.0,2658.3,0.00197166]
[1646499505427,4.36019244,2659.0,2658.3,0.00197166]
[1646499505624,4.36019244,2659.0,2658.0,0.02009626]
[1646499505625,15.82668951,2659.0,2658.0,0.02009626]
[1646499505823,17.13007681,2659.0,2658.5,0.00338802]
[1646499506025,0.3755,2658.8,2658.5,0.00338802]
[1646499506223,0.455,2658.7,2658.5,0.00338802]
[1646499506425,3.5,2658.6,2658.5,8.802e-05]
[1646499506629,15.475,2658.6,2658.5,8.802e-05]
[1646499506824,15.475,2658.6,2658.0,0.02009626]
[1646499506825,0.3755,2658.5,2658.0,0.02009626]
[1646499507024,0.3755,2658.3,2658.0,0.02009626]
[1646499507272,0.455,2658.2,2658.0,0.0181246]
[1646499507778,0.455,2658.2,2657.9,0.07297475]
[1646499508170,0.455,2658.2,2657.7,0.04584443]
[1646499508575,0.99677574,2658.1,2657.7,0.04584443]
[1646499509378,0.99677574,2658.1,2657.8,0.00188708]
[1646499509579,2.45503658,2658.3,2657.8,0.00188708]
[1646499509777,3.541,2658.8,2657.8,0.00188708]
[1646499509977,1.2199,2658.8,2657.8,0.00188708]
[1646499510378,1.2199,2658.8,2657.7,0.04584443]
[1646499510680,1.2199,2658.8,2658.2,0.00328391]
[1646499510681,0.94188456,2658.4,2658.2,0.00328391]
[1646499511130,0.455,2658.3,2658.2,0.00328391]
[1646499511627,0.455,2658.3,2657.9,0.00765712]
[1646499511828,0.455,2658.3,2658.1,0.00328394]
[1646499512628,0.8305,2658.3,2658.1,0.00328394]
[1646499512827,4.3305,2658.3,2657.9,0.00765712]
[1646499513027,4.3305,2658.3,2658.1,0.00328397]
[1646499513230,1.455,2658.3,2658.1,0.00328397]
[1646499513633,0.455,2658.3,2658.1,0.00328397]
[1646499514131,0.455,2658.3,2657.9,0.02203641]
[1646499514333,0.455,2658.3,2658.1,8.397e-05]
[1646499514334,4.3305,2658.3,2658.1,8.397e-05]
[1646499514681,15.02,2658.2,2658.1,8.397e-05]
[1646499514875,15.475,2658.2,2658.1,8.397e-05]
[1646499515074,16.475,2658.2,2658.1,8.397e-05]
[1646499515274,16.8505,2658.2,2657.9,0.00683641]
[1646499515478,11.90795279,2658.1,2657.9,3.641e-05]
[1646499515675,15.475,2658.0,2657.9,3.641e-05]
[1646499515877,11.975,2658.0,2657.9,3.641e-05]
[1646499516075,15.475,2658.0,2657.9,3.641e-05]
[1646499516275,16.475,2658.0,2657.9,3.641e-05]
[1646499516478,5.3755,2657.9,2657.7,0.03441766]
[1646499516689,0.455,2657.8,2657.7,0.03441766]
[1646499517678,0.4344,2657.8,2657.7,0.03441766]
[1646499518525,1.45488702,2658.1,2657.7,0.03441766]
[1646499518921,1.35488702,2658.1,2657.7,0.03441766]
[1646499519723,1.06281815,2657.8,2657.7,0.03441766]
[1646499520726,2.35488702,2658.1,2657.7,0.03441766]
[1646499520925,1.35488702,2658.1,2657.7,0.03441766]
[1646499521531,1.73038702,2658.1,2657.8,0.00346458]
[1646499521730,1.90985111,2658.0,2657.8,0.03775852]
[1646499522472,1.90985111,2658.0,2657.8,0.03429394]
[1646499522671,1.90985111,2658.0,2657.8,0.03775852]
[1646499523070,0.455,2658.0,2657.8,0.03775852]
[1646499523675,0.455,2658.0,2657.8,0.03429394]
[1646499523874,0.455,2658.0,2657.8,0.03764159]
[1646499524075,2.35488702,2658.1,2657.8,0.03764159]
[1646499524273,1.35488702,2658.1,2657.8,0.03764159]
[1646499524480,0.97142063,2658.0,2657.8,0.03764159]
[1646499524876,0.97142063,2658.0,2657.8,0.03429394]
[1646499525075,0.97142063,2658.0,2657.8,0.03764156]
[1646499525923,0.97142063,2658.0,2657.8,0.03429394]
[1646499526327,0.97142063,2658.0,2657.8,0.03764159]
[1646499527127,0.97142063,2658.0,2657.8,0.03429394]
[1646499527328,1.34692063,2658.0,2657.8,0.03429394]
[1646499527527,1.42642063,2658.0,2657.8,0.03753312]
[1646499527728,1.35488702,2658.1,2657.8,0.03753312]
[1646499528533,1.1342,2658.4,2657.8,0.03429394]
[1646499528733,3.57529997,2658.5,2657.8,0.03429394]
[1646499528734,0.8910681,2657.9,2657.8,0.03429394]
[1646499529665,0.8910681,2657.9,2657.8,0.0189797]
[1646499529865,0.8910681,2657.9,2657.8,0.03062848]
[1646499530065,5.03029997,2658.5,2657.8,0.03062848]
[1646499530265,1.54240033,2658.4,2657.8,0.03062848]
[1646499531068,1.54240033,2658.4,2658.0,0.00345039]
[1646499531069,6.06591382,2658.4,2658.0,0.00345039]
[1646499531271,6.54240033,2658.3,2657.8,0.02695936]
[1646499531471,1.54240033,2658.2,2657.8,0.02695936]
[1646499531670,0.455,2658.1,2657.8,0.02695936]
[1646499531870,5.41790033,2658.0,2657.8,0.02695936]
[1646499532073,1.99740033,2657.9,2657.8,0.02695936]
[1646499532268,2.96359601,2657.9,2657.8,0.02695936]
[1646499532471,2.86837501,2657.9,2657.8,0.02695936]
[1646499532669,3.86837501,2657.9,2657.8,0.02695936]
[1646499533522,3.86837501,2657.9,2657.2,0.00196619]
[1646499533523,3.86837501,2657.9,2657.1,1.14104688]
[1646499533720,3.93838751,2657.9,2657.1,1.14104688]
[1646499534120,1.06817283,2657.5,2657.1,1.14104688]
[1646499534320,1.06817283,2657.5,2657.0,0.89851621]
[1646499534920,2.46719183,2657.9,2657.0,0.89851621]
[1646499535126,2.46719183,2657.9,2657.0,1.83959621]
[1646499535318,2.46719183,2657.9,2657.1,1.0]
[1646499535319,1.46719183,2657.9,2657.1,1.0]
[1646499535519,1.46719183,2657.9,2657.5,0.00991]
[1646499536320,1.46719183,2657.9,2657.4,1.04948902]
[1646499536724,1.09261144,2658.0,2657.4,1.04948902]
[1646499537167,1.09261144,2658.0,2657.5,0.0034507]
[1646499537970,1.09261144,2658.0,2657.2,0.00195774]
[1646499538172,0.9412016,2658.2,2657.2,0.00195774]
[1646499538370,2.1596,2658.4,2657.2,0.00195774]
[1646499538573,1.1596,2658.4,2657.2,0.00195774]